Cogmind - Beta 15 @@@ ROGUE MODE // 2025.07.29 @ 19:04:00 Player: Zoe Result: Self-destructed Performance ------------- Evolutions (2) 1000 Regions Visited (5) 1000 Robots Destroyed (55) 275 Value Destroyed (1449) 1449 Prototype IDs (1) 20 Alien Tech Used (0) 0 Bonus (0) 0 TOTAL SCORE: 3744 Bonus ------- None Cogmind --------- Core Integrity 20/550 Matter 147/300 Energy 100/100 System Corruption 0% Temperature Critical (773) Movement Core (450) Ox8 Location -8/Storage Parts ------- > --- POWER (2) -------- (None) > --- PROPULSION (3) --- (None) > --- UTILITY (3) ------ Large Storage Unit > --- WEAPON (3) ------- Heavy Particle Cannon > --- INVENTORY (15) --- Light Nuclear Core Light Treads Heat Sink Small Storage Unit Large Storage Unit Light Armor Plating Shock Rifle Beam Rifle Beam Rifle Ion Cannon Ion Cannon Ion Cannon Heavy Assault Rifle High-powered Shotgun Mining Laser Peak State ------------ > --- POWER ------------ Deuterium Engine Light Nuclear Core > --- PROPULSION ------- Carbon-fiber Leg Carbon-fiber Leg Titanium Leg > --- UTILITY ---------- Large Storage Unit Experimental Sensor Array > --- WEAPON ----------- Ion Cannon Ion Cannon Ion Cannon > --- INVENTORY -------- Improved Ion Engine Light Treads Aluminum Leg Wheel Heat Sink Small Storage Unit Beam Rifle Ion Cannon Ion Cannon Ion Cannon Heavy Assault Rifle Rocket Launcher Mining Laser [Rating: 36] Favorites ----------- Power Improved Ion Engine Engine Improved Ion Engine Power Core Light Nuclear Core Propulsion Light Treads Treads Light Treads Leg Titanium Leg Utility Large Storage Unit Device Improved Terrain Scanner Storage Large Storage Unit Protection Light Armor Plating Weapon Heavy EM Pulse Gun Energy Gun Heavy EM Pulse Gun Energy Cannon Ion Cannon Ballistic Gun Light Assault Rifle Launcher Rocket Launcher Build | -11 -10 -9 -9 -8 -8 ------- Run | Yrd Mat Mat Min Mat Sto Slots Evolved 4 | . . 2 . 2 . Power 1 | . . . . 1 . Propulsion 1 | . . . . 1 . Utility 1 | . . 1 . . . Weapon 1 | . . 1 . . . Parts Attached 48 | 7 5 6 5 21 4 Power 9 | 1 1 . 1 5 1 Engine 7 | 1 1 . 1 4 . Core 2 | . . . . 1 1 Reactor . | . . . . . . Propulsion 11 | 3 . 2 2 4 . Treads 6 | 2 . 2 2 . . Leg 5 | 1 . . . 4 . Wheel . | . . . . . . Hover . | . . . . . . Flight . | . . . . . . Utility 11 | 1 2 2 . 6 . Device 5 | . 1 . . 4 . Storage 3 | 1 1 . . 1 . Processor . | . . . . . . Hackware . | . . . . . . Protection 3 | . . 2 . 1 . Artifact . | . . . . . . Weapon 17 | 2 2 2 2 6 3 Energy Gun 5 | . 2 2 1 . . Energy Cannon 8 | . . . 1 6 1 Ballistic Gun 2 | 2 . . . . . Ballistic Cannon . | . . . . . . Launcher 2 | . . . . . 2 Special Weapon . | . . . . . . Impact Weapon . | . . . . . . Slashing Weapon . | . . . . . . Piercing Weapon . | . . . . . . Special Melee Weapon . | . . . . . . Unidentified Prototypes 1 | . . . . 1 . Parts Lost 20 | . . . 4 6 10 Power 4 | . . . . 2 2 Propulsion 4 | . . . . 1 3 Utility 5 | . . . 2 1 2 Weapon 7 | . . . 2 2 3 Highest Loss Streak 7 | . . . 3 2 7 To Critical Strikes . | . . . . . . Average Backups 13 | 4 7 14 14 13 14 Power 2 | . 1 3 3 1 1 Propulsion 3 | 2 3 4 4 2 1 Utility 2 | . . 1 2 2 3 Weapon 5 | . 2 5 5 6 8 Tool/Special . | . . . . . . Unused Backups 13 | . 1 . 1 2 9 Power 1 | . 1 . . . . Propulsion 3 | . . . 1 1 1 Utility 2 | . . . . . 2 Weapon 7 | . . . . 1 6 Tool/Special . | . . . . . . Average Slot Usage (%) 91 | . 100 96 91 89 84 Engine 11 | . 14 11 11 14 9 Core 1 | . . . . 1 7 Treads 15 | . 28 22 22 11 . Leg 6 | . . . . 14 18 Device 10 | . 14 11 6 10 15 Storage 10 | . 14 11 11 9 9 Protection 4 | . . 7 7 2 . Energy Gun 16 | . . 33 29 2 . Energy Cannon 10 | . . . 3 22 24 Ballistic Gun 2 | . 27 . . . . Peak Build Rating 36 | 6 13 16 17 36 32 Average Rating 20 | 4 9 15 15 29 29 On Entrance 12 | . 6 13 16 12 29 Naked Turns . | . . . . . . Heaviest Build 58 | 12 34 40 40 58 54 Greatest Support 60 | 40 40 40 40 60 42 Greatest Overweight (x) 4 | . . . . 3 4 Average Overweight (x) . | . . . . . 1 Largest Inventory Capacity 15 | 8 15 15 15 15 15 Average Capacity 14 | 7 13 15 15 15 15 Most Carried 15 | 8 13 15 15 15 15 Average Carried 13 | 5 7 14 14 13 14 Final Capacity 15 | 8 15 15 15 15 15 Final Carried 15 | 6 13 15 15 14 15 Class Distribution -------------------- 38% | Tank 26% | Gunner 17% | Mutant 13% | Skirmisher 3% | Scavenger-Mutant Dominant Class ---------------- Mutant | -10/Materials Tank | -9/Materials Tank | -9/Mines Skirmisher | -8/Materials Gunner | -8/Storage Resources | -11 -10 -9 -9 -8 -8 ----------- Run | Yrd Mat Mat Min Mat Sto Matter Collected 1038 | 199 . 203 106 457 73 Remotely . | . . . . . . Salvage Created 2033 | 11 . 414 160 618 830 Parts 127 | 4 . 34 4 36 49 Haulers Intercepted . | . . . . . . Recyclers Shooed 1 | . . . . . 1 Parts Field Recycled . | . . . . . . Retrieved Matter . | . . . . . . Parts Self-Destructed . | . . . . . . Prevented . | . . . . . . Kills | -11 -10 -9 -9 -8 -8 ------- Run | Yrd Mat Mat Min Mat Sto Combat Hostiles Destroyed 50 | . . 11 9 15 15 Guns 18 | . . 10 8 . . Cannons 29 | . . . 1 14 14 AOE 2 | . . 1 . . 1 Classes Destroyed 12 | 1 . 3 1 1 6 Worker 4 | . . . . . 4 Builder 2 | . . . . 1 1 Tunneler 1 | 1 . . . . . Recycler 2 | . . . . . 2 Operator 1 | . . . . . 1 Watcher 1 | . . . . . 1 Swarmer 17 | . . 3 3 6 5 Grunt 18 | . . 5 . 8 5 Brawler 1 | . . . . . 1 Duelist 1 | . . . . . 1 Sentry 7 | . . 3 . 1 3 Assembled 6 | . . . 6 . . Best Kill Streak 11 | 1 . 3 3 5 11 Combat Bots Only 6 | . . 3 3 5 6 Max Kills in Single Turn 4 | 1 . 1 1 1 4 Gunslinging . | . . . . . . Exploded 1 | . . 1 . . 1 Melee . | . . . . . . Uniques/NPCs Destroyed . | . . . . . . Combat | -11 -10 -9 -9 -8 -8 -------- Run | Yrd Mat Mat Min Mat Sto Hostile Shots Fired 221 | . . 49 35 76 61 Missed 45 | . . 6 12 12 15 Hits 176 | . . 43 23 64 46 Melee 11 | . . . 4 . 7 Projectile 165 | . . 43 19 64 39 Critical Strikes 6 | . . . . 5 1 Part Disruptions 1 | . . . 1 . . Damage Taken 2676 | . . 466 328 957 925 Core 717 | . . 115 72 245 285 Absorbed by Shields . | . . . . . . Core Remaining (%) 84 | 100 100 . 53 . . Volleys Fired 123 | 5 6 20 22 34 36 Largest 3 | 2 2 3 3 3 3 Hottest 195 | 40 40 135 153 180 195 Shots Fired 326 | 10 12 60 55 94 95 Gun 131 | 10 12 60 47 2 . Cannon 193 | . . . 8 92 93 Launcher 2 | . . . . . 2 Special . | . . . . . . Kinetic 22 | 10 12 . . . . Thermal 202 | . . . 16 93 93 Explosive 2 | . . . . . 2 Electromagnetic 100 | . . 60 39 1 . Robot Hit Streak 11 | 4 3 7 4 8 11 Robot Miss Streak 4 | 1 4 4 3 3 3 Penetration Max . | . . . . . . Secondary Targets 1 | . . 1 . . . Max Gunslinging Chain 1 | . . 1 . . . Shots Hit Robots 166 | 8 5 28 26 54 45 Core Hits 86 | 2 2 14 12 23 33 Critical Kills 1 | . . . . 1 . Critical Parts Destroyed . | . . . . . . Critical Strikes 2 | . . 1 . 1 . Meltdown 1 | . . . . 1 . Corrupt 1 | . . 1 . . . Melee Attacks . | . . . . . . Impact . | . . . . . . Slashing . | . . . . . . Piercing . | . . . . . . Sneak Attacks . | . . . . . . Combat Hostiles . | . . . . . . Follow-up Attacks . | . . . . . . Damage Inflicted 3829 | 62 41 451 346 1319 1610 Guns 831 | 62 41 386 318 24 . Cannons 2433 | . . . 20 1295 1118 Explosions 557 | . . 65 . . 492 Melee . | . . . . . . Ramming 8 | . . . 8 . . Kinetic 103 | 62 41 . . . . Thermal 2543 | . . 65 53 1307 1118 Explosive 492 | . . . . . 492 Electromagnetic 683 | . . 386 285 12 . Impact . | . . . . . . Slashing . | . . . . . . Piercing . | . . . . . . Highest Corruption . | . . . . . . Average Corruption . | . . . . . . Corruption Purged . | . . . . . . Corruption Blocked . | . . . . . . Overload Shots . | . . . . . . Overflow Damage 58 | . . . . 17 41 Projectiles 17 | . . . . 17 . Explosions 41 | . . . . . 41 Melee . | . . . . . . Knockbacks . | . . . . . . Impact . | . . . . . . Kinetic . | . . . . . . Secondary . | . . . . . . Self-Inflicted Damage 70 | . . 36 . . 34 Shots 2 | . . 1 . . 1 Rammed 2 | . . . 2 . . Targets Rammed 2 | . . . 2 . . Kicked . | . . . . . . Crushed . | . . . . . . Highest Temperature 795 | . . 485 508 695 795 Average Temperature 217 | . . 164 146 287 231 Received Heat Transfer 782 | . . 99 80 369 234 Effects 93 | . . 5 5 56 27 Shutdowns 23 | . . 1 1 14 7 Energy Bleed 12 | . . 2 1 9 . Interference 12 | . . . 2 6 4 Matter Decay 13 | . . . 1 9 3 Short Circuit 3 | . . . . 2 1 Damage (minor) 2 | . . . . 1 1 Damage (major) 24 | . . 2 . 13 9 Damage (core) 4 | . . . . 2 2 Siege Activations . | . . . . . . Martial Activations . | . . . . . . Shielding Activations . | . . . . . . Robots Disrupted . | . . . . . . Combat Hostiles . | . . . . . . Robots Corrupted . | . . . . . . Combat Hostiles . | . . . . . . Parts Fried . | . . . . . . Impact Corruptions . | . . . . . . Robots Melted 1 | . . . . 1 . Combat Hostiles 1 | . . . . 1 . Parts Melted 7 | . . . . 5 2 Heat Transferred 3887 | . . 50 112 1986 1739 Parts Sabotaged . | . . . . . . Parts Stolen . | . . . . . . Parts Stripped . | . . . . . . Power Chain Reactions 1 | . . 1 . . . Alert | -11 -10 -9 -9 -8 -8 ------- Run | Yrd Mat Mat Min Mat Sto Maximum Alert Level 1 | . . . . . 1 Low Security (%) 97 | 100 100 100 100 100 86 Level 1 2 | . . . . . 13 Level 2 . | . . . . . . Level 3 . | . . . . . . Level 4 . | . . . . . . Level 5 . | . . . . . . High Security . | . . . . . . Max Security . | . . . . . . Peak Influence 252 | 5 26 168 75 124 252 Initial 55 | . . . 55 . 42 Average 62 | . 3 78 18 69 131 Influence Increases 1279 | 5 26 330 70 370 478 Destroy 0b10 Robot/C 880 | . . 220 60 300 300 Destroy 0b10 Robot/NC 55 | 5 . . . 5 45 Destroy Leader 182 | . . 60 10 50 62 Successful Hack 29 | . 26 . . . 3 Disable Machine 30 | . . . . . 30 Destroy Structure 58 | . . 5 . 15 38 Partial Spotted 15 | . . 15 . . . Lose Combat Pursuer 30 | . . 30 . . . Influence Decreases 1065 | 5 26 186 214 270 364 Entered New Map 147 | . . . 89 . 58 Time Decay 758 | 5 26 186 125 210 206 Lost Part 160 | . . . . 60 100 Squads Dispatched 7 | . 1 3 . . 3 Investigation 3 | . . 3 . . . Extermination . | . . . . . . Reinforcement 4 | . 1 . . . 3 Assault . | . . . . . . Garrison . | . . . . . . Intercept . | . . . . . . Searches Triggered . | . . . . . . Construction Impeded 1 | . . . . . 1 Haulers Reinforced . | . . . . . . Active Scanning Responses . | . . . . . . Cargo Convoy Interrupts . | . . . . . . Stealth | -11 -10 -9 -9 -8 -8 --------- Run | Yrd Mat Mat Min Mat Sto Distress Signals 6 | . . 1 1 2 2 Communications Jammed . | . . . . . . Distress Signals . | . . . . . . Times Spotted 75 | . 3 13 11 22 26 Peak Tracking Total 6 | . 2 5 3 5 6 Tactical Retreats 2 | . . 2 . . . Traps | -11 -10 -9 -9 -8 -8 ------- Run | Yrd Mat Mat Min Mat Sto Traps Triggered 3 | . . 1 . 1 1 Indirectly . | . . . . . . Trap Hack Attempts . | . . . . . . Triggered . | . . . . . . Disarmed . | . . . . . . Reprogrammed . | . . . . . . Reused . | . . . . . . Traps Extracted . | . . . . . . Installed . | . . . . . . Triggered . | . . . . . . Machines | -11 -10 -9 -9 -8 -8 ---------- Run | Yrd Mat Mat Min Mat Sto Machines Disabled 2 | . . . . . 2 Max in Single Turn 1 | . . . . . 1 Garrison Access 1 | . . . . . 1 Machines Repaired . | . . . . . . Machines Dismantled . | . . . . . . Machines Sabotaged . | . . . . . . Overloaded Fab Kills . | . . . . . . Hacking | -11 -10 -9 -9 -8 -8 --------- Run | Yrd Mat Mat Min Mat Sto Machines Accessed 6 | . 1 3 . . 2 Terminals 5 | . 1 3 . . 1 Fabricators . | . . . . . . Repair Stations . | . . . . . . Recycling Units . | . . . . . . Scanalyzers . | . . . . . . Garrison Access 1 | . . . . . 1 Total Hacks 17 | . 4 8 . . 5 Successful 6 | . 2 2 . . 2 Failed 11 | . 2 6 . . 3 Catastrophic 2 | . . 1 . . 1 Database Lockouts . | . . . . . . Manual 10 | . 2 5 . . 3 Terminals 15 | . 4 8 . . 3 Fabricators . | . . . . . . Repair Stations . | . . . . . . Recycling Units . | . . . . . . Scanalyzers . | . . . . . . Garrison Access 2 | . . . . . 2 Terminal Hacks 1 | . 1 . . . . Robot Analysis 1 | . 1 . . . . Fabricator Hacks . | . . . . . . Repair Station Hacks . | . . . . . . Recycling Unit Hacks . | . . . . . . Scanalyzer . | . . . . . . Garrison Access Hacks 1 | . . . . . 1 Seal Access 1 | . . . . . 1 Unauthorized Hacks 4 | . 1 2 . . 1 Terminals 4 | . 1 2 . . 1 Track 4 | . 1 2 . . 1 Fabricators . | . . . . . . Repair Stations . | . . . . . . Recycling Units . | . . . . . . Scanalyzers . | . . . . . . Garrison Access . | . . . . . . Data Cores Recovered . | . . . . . . Used . | . . . . . . Hacking Detections 4 | . 1 2 . . 1 Full Trace Events 3 | . . 2 . . 1 Feedback Events . | . . . . . . Feedback Blocked . | . . . . . . Robot Schematics Acquired . | . . . . . . Robots Built . | . . . . . . Authchips . | . . . . . . Time . | . . . . . . Total Robot Build Rating . | . . . . . . Part Schematics Acquired . | . . . . . . Parts Built . | . . . . . . Authchips . | . . . . . . Time . | . . . . . . Total Part Build Rating . | . . . . . . Parts Repaired . | . . . . . . Time . | . . . . . . Parts Recycled . | . . . . . . Recycled Matter . | . . . . . . Retrieved Matter . | . . . . . . Retrieved Components . | . . . . . . Parts Scanalyzed . | . . . . . . Part Schematics Acquired . | . . . . . . Parts Damaged . | . . . . . . Bothacking | -11 -10 -9 -9 -8 -8 ------------ Run | Yrd Mat Mat Min Mat Sto Used RIF Installer . | . . . . . . Robots Hacked . | . . . . . . Non-combat . | . . . . . . Combat . | . . . . . . Robot Hacks Applied . | . . . . . . Relay Couplers Released . | . . . . . . Fabnet Peak Effective % . | . . . . . . Robots Rewired . | . . . . . . Allies Hacked . | . . . . . . Hacks Repelled . | . . . . . . Allies | -11 -10 -9 -9 -8 -8 -------- Run | Yrd Mat Mat Min Mat Sto Total Allies . | . . . . . . Largest Group . | . . . . . . Highest-Rated Group . | . . . . . . Highest-Rated Ally . | . . . . . . Total Orders . | . . . . . . Ally Attacks . | . . . . . . Total Damage . | . . . . . . Kills . | . . . . . . Allies Corrupted . | . . . . . . Allies Melted . | . . . . . . Intel | -11 -10 -9 -9 -8 -8 ------- Run | Yrd Mat Mat Min Mat Sto Active Infowar (turns) 1201 | . 188 520 327 166 . Sensors 166 | . . . . 166 . Terrain 1035 | . 188 520 327 . . Robot Analysis Total 1 | . 1 . . . . Derelict Logs Recovered . | . . . . . . Drone Launches . | . . . . . . Drone Recoveries . | . . . . . . Exploration | -11 -10 -9 -9 -8 -8 ------------- Run | Yrd Mat Mat Min Mat Sto Turns Passed 2245 | 88 188 520 533 494 422 Spaces Moved 934 | 43 97 217 277 161 139 Core 9 | 9 . . . . . Treads 691 | 28 97 217 277 72 . Legs 234 | 6 . . . 89 139 Wheels . | . . . . . . Hover . | . . . . . . Flight . | . . . . . . Fastest Speed 50 | 50 160 160 160 160 193 Average Speed 170 | 131 160 160 160 185 209 Slowest Speed 400 | 160 160 160 160 330 400 Overloaded Moves . | . . . . . . Propulsion Burnouts . | . . . . . . Robots Hopped . | . . . . . . Potential Cave-ins . | . . . . . . Cave-ins Triggered . | . . . . . . Exploration Rate (%) 26 | 4 22 21 63 20 29 Regions Visited 5 Branch Regions 2 Pre-discovered Areas . | . . . . . . Known Exits Taken . | . . . . . . Unknown Exits Taken 5 | 1 1 1 1 1 . Scrap Searched 1 | . . . 1 . . Spaces Dug . | . . . . . . Terrain Destroyed 56 | . . 4 . 14 38 Melee . | . . . . . . Projectile 37 | . . . . 14 23 AOE 19 | . . 4 . . 15 Terrain Rammed . | . . . . . . Walls Destroyed . | . . . . . . Machines Disabled . | . . . . . . Actions | -11 -10 -9 -9 -8 -8 --------- Run | Yrd Mat Mat Min Mat Sto Total 1329 | 66 119 346 321 286 191 Wait 150 | . . 96 10 36 8 Move 929 | 42 96 216 276 160 139 Hop . | . . . . . . Pick Up 49 | 11 10 5 4 16 3 Fast Attach 9 | 2 . . . 6 1 Attach 22 | 5 1 2 2 10 2 Detach 1 | . . . . 1 . Swap 21 | . 4 4 3 8 2 Drop 23 | 1 2 3 2 15 . Fire 123 | 5 6 20 22 34 36 Melee . | . . . . . . Ram . | . . . . . . Kick . | . . . . . . Crush 2 | . . . 2 . . Escape Stasis . | . . . . . . Rewire . | . . . . . . Trap . | . . . . . . Miscellaneous . | . . . . . . Route ------- -11/Scrapyard -10/Materials (discovered 2 exits: *Mat / [Sub]) -9/Materials -9/Mines -8/Materials -8/Storage History --------- Turn | Location | Event 16 | -11/Scrapyard | Discovered new exit (range 15) 89 | -11/Scrapyard | Entered Materials 110 | -10/Materials | Discovered new exit (range 15) 221 | -10/Materials | Discovered new exit (range 15) 277 | -10/Materials | Entered another Materials area 277 | -9/Materials | Evolved 2 slots: Utility x1, Weapon x1 712 | -9/Materials | Build established: Tank 769 | -9/Materials | Discovered new exit (range 16) 797 | -9/Materials | Entered Mines 877 | -9/Mines | Assembled infested the area 1020 | -9/Mines | Found a damaged Exp. Sensor Array with a note attached 1024 | -9/Mines | Found Prototype Device 1192 | -9/Mines | Lost 3 parts (1u2w) 1292 | -9/Mines | Discovered new exit (range 14) 1302 | -9/Mines | Received a Rocket Launcher from a helpful Derelict 1330 | -9/Mines | Entered Materials 1330 | -8/Materials | Evolved 2 slots: Power x1, Propulsion x1 1331 | -8/Materials | Identified Exp. Sensor Array 1773 | -8/Materials | Discovered new exit (range 10) 1824 | -8/Materials | Entered Storage 1834 | -8/Storage | Core integrity fell below 50% 2246 | -8/Storage | Core integrity fell below 20% 2246 | -8/Storage | Self-destructed Last Messages --------------- K-01 Serf collects debris. Destroyed Wheel. K-01 Serf destroyed. Destroyed Lgt. Ion Engine. Destroyed Com. Wheel. Broken Titanium Leg destroyed. Destroyed Broken Titanium Leg. U-05 Engineer destroyed. G-47 Trooper destroyed. Overheating: Rocket Launcher damaged (-16). Overheating: Hvy. Particle Cannon damaged (-35). Overheating: Lrg. Storage Unit damaged (-147). Lgt. Angular Momentum Engine destroyed. Missile Launcher destroyed. ALERT: Construction progress impeded, dispatching reinforcements to local area. Overheating: System interference. Hvy. Particle Cannon temporarily disabled. Rocket Launcher destroyed. Overheating: Core damaged (-99). Map ----- +----------------------------------------------------+ | ???# + """ ""????????????????????????????????? | | ???# # """ ""???????? ?????????????????????? | | ???# # ???????? #????????????????????? | | ???# ###########??????? #????????????????????? | | ???# ########?????????? #????????????????????? | | #### # ?#??????# #????????????????????? | | #""" # """ """ #??????+ +????????????????????? | | #"G # """ """ #??????# #????????????????????? | | #""" # """ """ #??????# #????????????????????? | | #### # """ """ #??????+ ##???????????????????? | | ???# + """ """ #??????# #????????????????????? | | ???# # #??????# #????????????????????? | | ???# # #??????# #????????????????????? | | ???# #####+#####??????# ###??????????????????? | | ???# #?# % ########## ########?????????????? | | ???# ### #?????????????? | | ???# ### % #?????????????? | | ???# #?# %% #?????????????? | | ???# #?# =%####+######/#;;######?????????????? | | ???# #####+####% # r ;#????????????????? | | ???# ### % % #= "" # T #?????????????????? | | ???# ### " " # "R" # rw #?????????????????? | | ???# #?# """%# " " # =%r #????## #?????????? | | ???# ??# """ # # * # #?????????? | | ???# ??# # # [!% #?????????? | | ???? ??#! """!# !!! # [@== ga #?????????? | | ?????????# """ # !! # [ %k g ????????? | | ?????????# """ # !! # !u %g ##???????????? | | ?????????# # ### % ! #????????????? | | ?????????# """ # #?##=% #????????????? | | ?????????# """!# ??? = # ; ???????????? | | ?????????# """%#+######??#m###? # ??????????? | | ?????????# !=#?????????? ???? #????????????? | | ?????????##### ##?????????? ????? #????????????? | | ?????????????####?????????? ????? #????????????? | | ???????????????????????????? ??????#????????????? | | ????????????????????????????##???????????????????? | | ?????????????????????????????????????????????????? | | ?????????????????????????????????????????????????? | | ?????????????????????????????????????????????????? | | ?????????????????????????????????????????????????? | | ?????????????????????????????????????????????????? | | ?????????????????????????????????????????????????? | | ?????????????????????????????????????????????????? | | ?????????????????????????????????????????????????? | | ?????????????????????????????????????????????????? | | ?????????????????????????????????????????????????? | | ?????????????????????????????????????????????????? | | ?????????????????????????????????????????????????? | | ?????????????????????????????????????????????????? | +----------------------------------------------------+ Best States ------------- Heat Dissipation 64 Energy Generation 27 Energy Capacity 440 Matter Stores 300 Matter Capacity 300 Sight Range 16 Robot Scan Range 20 Terrain Scan Range 16 Terrain Scan Density 10 Armor Coverage 150 Evasion (%) 50 Recoil Reduction 3 Item Schematics ----------------- None Robot Schematics ------------------ None Fabricated ------------ Nothing Repaired ---------- Nothing Alien Tech Used ----------------- None Achievements -------------- None Challenges ------------ None Game ------ Seed DisposableSensorDoomcannon Manual? 0 Play Time 00:24:18 Cumulative 20.4 hours Start 2025.07.29 @ 18:07:52 End 2025.07.29 @ 19:04:00 Sessions 3 Manual Loads 0 Difficulty Rogue Special Mode None Game No. 40 Rogue 37 Adventurer 3 Explorer 0 Win Type - Total 0 Types 0/0/0/0/0/0/0/0/0/0 Lore% 14 Gallery% 19 Achievement% 18 Wizard Run 0 Options --------- Layout 1 ASCII 0 Keyboard 0 Movement Mouse Keybinds 0 Fullscreen 1 Font 24/Smallcaps Map View 50x35 Zoom Use 0% Tactical HUD 0 Map Filters NONE Filters NONE Steam 1 RUN: 8c1e809f-7f61-4759-aceb-f064a5eb68e5